fUSD/lending_fUSD_20240611
["ID","MTS","AMOUNT","RATE_DAILY","PERIOD"]
[329139855,1718134041999,-422.78,0.00020934,2]
[329139856,1718134042025,-422.78,0.00020934,2]
[329139857,1718134042050,-422.78,0.00020934,2]
[329139858,1718134042075,-422.78,0.00020934,2]
[329139859,1718134042102,-560.75,0.00020952,2]
[329139860,1718134042126,-422.78,0.00020959,2]
[329139861,1718134042150,-422.78,0.00020959,2]
[329139862,1718134042176,-150.0,0.00020959,2]
[329139863,1718134042201,-150.0,0.00020959,2]
[329139864,1718134042227,-164.25,0.00020959,2]
[329139865,1718134042251,-353.53,0.00020959,2]
[329139866,1718134042276,-1049.26,0.00020959,2]
[329139867,1718134042300,-150.0,0.00020959,2]
[329139868,1718134042325,-164.25,0.00020959,2]
[329139869,1718134042350,-353.53,0.00020959,2]
[329139870,1718134042376,-150.0,0.00020959,2]
[329139871,1718134042401,-422.78,0.00020959,2]
[329139872,1718134042427,-164.25,0.00020959,2]
[329139873,1718134042451,-1484.15502106,0.00021,5]
[329139881,1718134233011,-1540.87811604,0.00017258,2]
[329139882,1718134233021,-364.20577069,0.00019451,2]
[329139883,1718134233032,-334.29552451,0.00019451,2]
[329139884,1718134233043,-68.06366876,0.00019451,2]
[329139885,1718134233132,-231.93633124,0.00019451,2]
[329139886,1718134233152,-262.96555812,0.0002,2]
[329139887,1718134233167,-226.7178388,0.000201,2]
[329139888,1718134233178,-13103.18027184,0.00020161,2]
[329139889,1718134233195,-10796.81972816,0.00020161,2]
[329139890,1718134233208,-3658.602,0.00020672,2]
[329139891,1718134233222,-200.34,0.00020989,2]
[329139892,1718134233232,-499.99,0.00020995,2]
[329139893,1718134233247,-200.48,0.00020995,2]
[329139894,1718134233263,-198.51,0.00020995,2]
[329139895,1718134233277,-2256.51473284,0.00020995,2]
[329139918,1718134234379,-27947.87974686,0.00020995,2]
[329139919,1718134234389,-4393.08025313,0.00021,5]
[329139920,1718134234514,-5862.91974687,0.00021,5]
[329139921,1718134234526,-422.78,0.00021,2]
[329139922,1718134234538,-150.0,0.00021,2]
[329139923,1718134234549,-164.25,0.00021,2]
[329139924,1718134234567,-500.0,0.00021,2]
[329139925,1718134234581,-447.16442403,0.00021,2]
[329139926,1718134234596,-17275.26156466,0.00021,2]
[329139927,1718134234610,-17720.9676657,0.00021,2]
[329139928,1718134234623,-327.52,0.00021,2]
[329139929,1718134234634,-2000.0,0.00021,2]
[329139930,1718134234645,-200.0,0.00021,2]
[329139931,1718134234657,-3740.009,0.0002101,2]
[329139932,1718134234668,-3685.104,0.0002101,2]
[329139933,1718134234678,-3702.046,0.0002101,2]
[329139934,1718134234688,-3714.53,0.0002101,2]
[329139935,1718134234698,-211.6109,0.0002108,2]
[329139936,1718134234709,-453.2699,0.00021097,2]
[329139937,1718134234719,-382.96459913,0.00021165,2]
[329139938,1718134234730,-2222.026,0.0002118,2]
[329139939,1718134234741,-7649.65219149,0.0002118,4]
[329139940,1718134234751,-4399.83051554,0.00021197,2]
[329139941,1718134234841,-300.0,0.00020895,2]
[329139942,1718134234883,-94.95499992,0.00021197,2]
[329139944,1718134239022,-15786.25,0.00021197,2]
[329139945,1718134239039,-21275.55548454,0.00021197,2]
[329139946,1718134239051,-571.698,0.00021197,2]
[329139947,1718134239063,-2500.0,0.00021197,2]
[329139948,1718134239074,-271.94065118,0.00021197,2]
[329139949,1718134239086,-2563.41822351,0.00021197,2]
[329139950,1718134239098,-320.86450279,0.00021197,2]
[329139951,1718134239111,-2000.0,0.0002121,2]
[329139952,1718134239124,-200.0,0.0002121,2]
[329139953,1718134239140,-7649.65219149,0.00021214,4]
[329139954,1718134239156,-7649.65219149,0.0002123,4]
[329139955,1718134239169,-7649.65219149,0.00021235,4]
[329139956,1718134239182,-7649.65219149,0.00021271,4]
[329139957,1718134239194,-7649.65219149,0.00021294,4]
[329139958,1718134239209,-415.29183927,0.00021295,2]
[329139959,1718134239221,-348.05785413,0.00021295,2]
[329139960,1718134239233,-370.26872628,0.00021295,2]
[329139961,1718134239245,-561.47754647,0.00021295,2]
[329139962,1718134239257,-333.06966024,0.00021295,2]
[329139963,1718134239268,-1879.07636043,0.00021295,2]
[329139964,1718134239281,-643.85187739,0.00021295,2]
[329139965,1718134239292,-216.95866088,0.00021295,2]
[329139966,1718134239303,-284.76922488,0.00021295,2]
[329139967,1718134239314,-204.57970874,0.00021295,2]
[329139968,1718134239325,-406.45560075,0.00021295,2]
[329139969,1718134239336,-163.10666617,0.00021295,2]
[329139970,1718134239348,-249.4215124,0.00021295,2]
[329139971,1718134239360,-180.24039592,0.00021295,2]
[329139972,1718134239371,-156.89655672,0.00021295,2]
[329139973,1718134239386,-239.15757143,0.00021295,2]
[329139974,1718134239398,-202.04289428,0.00021295,2]
[329139975,1718134239412,-327.23178997,0.00021295,2]
[329139976,1718134239429,-155.40225675,0.00021295,2]
[329139977,1718134239440,-189.42904866,0.00021295,2]
[329139978,1718134239454,-296.58359376,0.00021295,2]
[329139979,1718134239467,-280.65706884,0.00021295,2]
[329139980,1718134239480,-372.94873447,0.00021295,2]
[329139981,1718134239491,-467.37744874,0.00021295,2]
[329139982,1718134239502,-1248.8431247,0.00021295,2]
[329139983,1718134239518,-1168.83622353,0.00021295,2]
[329139984,1718134239532,-314.98864362,0.00021296,2]
[329139985,1718134239543,-380.02010582,0.00021296,2]
[329139986,1718134239554,-20106.7221,0.00021297,2]
[329139987,1718134239565,-57344.75867546,0.00021297,2]
[329139988,1718134239737,-6941.93023562,0.00021297,2]
[329139989,1718134239886,-1923.30143526,0.00021297,2]
[329139990,1718134239902,-11336.63010795,0.00021297,2]
[329139991,1718134239917,-1119.95985758,0.00021297,2]
[329139992,1718134239939,-1896.7602956,0.00021297,2]
[329139993,1718134239953,-8297.8,0.00021297,2]
[329139998,1718134241322,-781.13954653,0.00021097,2]
[329139999,1718134241337,-1768.09429018,0.00021297,2]
[329140000,1718134241354,-2371.47496843,0.00021297,2]
[329140001,1718134241738,-3284.59650955,0.00021297,2]
[329140002,1718134241766,-2317.16226982,0.00021297,2]
[329140003,1718134241783,-340.78144659,0.00021297,2]
[329140004,1718134241886,-1056.74990796,0.00021297,2]
[329140005,1718134241899,-540.13015841,0.00021297,2]
[329140006,1718134242004,-406.44,0.00021297,2]
[329140007,1718134242019,-442.88999996,0.00021297,2]
[329140216,1718134244617,-500.0,0.00021297,2]
[329140219,1718134244630,-309.12639055,0.00021297,2]
[329140224,1718134244688,-979.67234235,0.00021297,2]
[329140279,1718134245318,-377.88213118,0.00021295,2]
[329140281,1718134245329,-2156.14710309,0.00021297,2]
[329140286,1718134245374,-590.75255629,0.00021297,2]
[329140297,1718134245485,-167346.7296003,0.00021297,2]
[329140304,1718134245539,-3563.04999999,0.00021297,2]
[329140306,1718134245552,-20583.45037417,0.00021297,2]
[329140309,1718134245580,-10184.91313959,0.00021297,2]
[329140312,1718134245603,-10000.64130364,0.00021297,2]
[329140315,1718134245617,-24588.78853905,0.00021297,2]
[329140317,1718134245630,-2807.26849261,0.00021297,2]
[329140319,1718134245641,-288.07331344,0.00021297,2]
[329140325,1718134245701,-2874.04868656,0.00021297,2]
[329140327,1718134245712,-500.0,0.00021297,2]
[329140329,1718134245723,-4829.8355,0.00021297,2]
[329140331,1718134245733,-1000.0,0.00021297,2]
[329140333,1718134245743,-714.12863148,0.00021297,2]
[329140335,1718134245754,-893.08502989,0.00021338,2]
[329140507,1718134247329,-434.41545218,0.00021,2]
[329140511,1718134247341,-781.13954649,0.00021122,2]
[329140512,1718134247351,-196.99,0.00021192,2]
[329140515,1718134247362,-334.43237063,0.00021296,2]
[329140518,1718134247373,-12022.4664663,0.00021338,2]
[329140521,1718134247383,-271.94065118,0.00021352,2]
[329140523,1718134247394,-173.30371157,0.0002137,2]
[329140524,1718134247404,-4140.55932962,0.00021376,2]
[329140527,1718134247416,-151.97,0.00021387,2]
[329140529,1718134247427,-151.97,0.00021387,2]
[329140532,1718134247438,-19602.23374085,0.00021391,3]
[329140535,1718134247450,-19602.23374085,0.00021393,3]
[329140539,1718134247462,-1000.0,0.00021395,2]
[329140542,1718134247473,-1000.0,0.00021395,2]
[329140545,1718134247483,-1000.0,0.00021395,2]
[329140548,1718134247495,-1000.0,0.00021395,2]
[329140551,1718134247506,-1000.0,0.00021395,2]
[329140554,1718134247519,-1000.0,0.00021395,2]
[329140557,1718134247530,-1000.0,0.00021395,2]
[329140560,1718134247543,-1000.0,0.00021395,2]
[329140562,1718134247554,-666.0,0.00021395,2]
[329140564,1718134247565,-565.01856652,0.00021395,2]
[329140566,1718134247576,-156.34146276,0.00021395,2]
[329140568,1718134247587,-299.29433227,0.00021395,2]
[329140570,1718134247598,-156.63790936,0.00021395,2]
[329140572,1718134247610,-1257.91649181,0.00021395,2]
[329140574,1718134247621,-155.0,0.00021395,2]
[329140576,1718134247634,-490.61954782,0.00021395,2]
[329140578,1718134247645,-545.84909757,0.00021395,2]
[329140580,1718134247657,-195.79238693,0.00021395,2]
[329140583,1718134247670,-199.44657459,0.00021395,2]
[329140585,1718134247680,-307.12466618,0.00021395,2]
[329140586,1718134247691,-238.50139383,0.00021395,2]
[329140587,1718134247702,-162.6255794,0.00021395,2]
[329140588,1718134247712,-205.94174335,0.00021395,2]
[329140589,1718134247723,-667.45016743,0.00021395,2]
[329140590,1718134247733,-1202.89219001,0.00021395,2]
[329140591,1718134247744,-176.33698456,0.00021395,2]
[329140592,1718134247754,-155.36739299,0.00021395,2]
[329140593,1718134247765,-1215.31501822,0.00021395,2]
[329140595,1718134247775,-1974.36334918,0.00021395,2]
[329140597,1718134247787,-8214.1978926,0.00021395,2]
[329140599,1718134247799,-155.47371377,0.00021395,2]
[329140602,1718134247810,-241.58417095,0.00021395,2]
[329140604,1718134247821,-5296.37264161,0.00021395,2]
[329140606,1718134247832,-1219.0116262,0.00021395,2]
[329140608,1718134247847,-5577.6428987,0.00021395,2]
[329140609,1718134247875,-4291.15759947,0.00021396,2]
[329140611,1718134247887,-155.0,0.00021396,2]
[329140613,1718134247899,-155.46787492,0.00021396,2]
[329140615,1718134247911,-35836.60171733,0.00021397,3]
[329140699,1718134248668,-13677.10786899,0.00021397,3]
[329140711,1718134248731,-262.96555812,0.00021295,2]
[329140713,1718134248741,-207.48520993,0.00021387,2]
[329140715,1718134248753,-1380.45148601,0.00021397,3]
[329140720,1718134248798,-584.74,0.00021397,3]
[329140723,1718134248811,-335.60142443,0.00021397,3]
[329140727,1718134248859,-2657.21750441,0.00021397,3]
[329140730,1718134248875,-9415.8303339,0.00021397,3]
[329140753,1718134249112,-3183.4944991,0.00021397,3]
[329140754,1718134249125,-76795.16874037,0.00021397,3]
[329140755,1718134249136,-19602.23374085,0.00021397,3]
[329140756,1718134249146,-55493.81154697,0.00021397,2]
[329142289,1718134435867,4000.92842581,9e-05,2]
[329142290,1718134445408,166.50912779,0.000118,2]
[329142291,1718134445441,5000.0,0.000118,2]
[329142292,1718134445481,5000.0,0.000118,2]
[329142293,1718134445525,5000.0,0.000118,2]
[329142294,1718134445556,111.72656406,0.000118,2]
[329142295,1718134470681,1797.15487374,6.94e-05,2]
[329142296,1718134484506,3091.1185622,0.000118,2]
[329142297,1718134484533,5000.0,0.000118,2]
[329142298,1718134484560,5000.0,0.000118,2]
[329142299,1718134484587,4690.96629553,0.000118,2]
[329142300,1718134485126,180.72100883,0.000118,2]
[329142301,1718134499224,128.31269564,0.000118,2]
[329142302,1718134499249,52.02308053,0.000118,2]
[329142303,1718134515828,4947.97691947,0.000118,2]
[329142304,1718134515855,5000.0,0.000118,2]
[329142305,1718134515883,5000.0,0.000118,2]
[329142306,1718134515912,5000.0,0.000118,2]
[329142307,1718134515944,5000.0,0.000118,2]
[329142308,1718134515972,5000.0,0.000118,2]
[329142309,1718134516009,5000.0,0.000118,2]
[329142310,1718134516038,5000.0,0.000118,2]
[329142311,1718134516065,5000.0,0.000118,2]
[329142312,1718134516092,5000.0,0.000118,2]
[329142313,1718134516119,5000.0,0.000118,2]
[329142314,1718134623741,-1249.56334718,0.00011797,2]
[329142315,1718134623774,-1168.83622353,0.00011798,2]
[329142316,1718134623802,-886.26256298,0.00011798,2]
[329142317,1718134623836,-24115.84466356,0.000118,2]
[329142318,1718134624935,942.35655589,0.00011796,2]
[329142319,1718134626403,9828.40030015,0.00011698,2]
[329142320,1718134781955,-1249.56334718,0.00013888,2]
[329142321,1718134781984,-2000.25333624,0.00013889,2]
[329142322,1718134883271,-219.65,0.0001389,2]
[329142323,1718134883297,-2337.22101959,0.00013903,2]
[329142324,1718134883323,-320.86450279,0.00013904,2]
[329142325,1718134883348,-1428.25726296,0.00013904,2]
[329142326,1718134883373,-11999.15306273,0.00013904,2]
[329142327,1718134883397,-2494.92302659,0.00013989,2]
[329142328,1718134883424,-155.38,0.0001399,3]
[329142329,1718134883452,-151.97,0.0001399,2]
[329142330,1718134883479,-151.97,0.0001399,2]
[329142331,1718134883505,-151.97,0.0001399,2]
[329142332,1718134883530,-151.97,0.0001399,2]
[329142333,1718134883555,-151.97,0.0001399,2]
[329142334,1718134883580,-207.48520993,0.0001399,2]
[329142335,1718134883606,-151.97,0.0001399,2]
[329142336,1718134883632,-151.97,0.0001399,2]
[329142337,1718134883661,-151.97,0.0001399,2]
[329142338,1718134883687,-151.97,0.0001399,2]
[329142339,1718134883714,-151.97,0.0001399,2]
[329142340,1718134883741,-151.97,0.0001399,2]
[329142341,1718134883768,-151.97,0.0001399,2]
[329142342,1718134883798,-151.97,0.0001399,2]
[329142343,1718134883828,-151.97,0.0001399,2]
[329142344,1718134883853,-150.0,0.00013997,2]
[329142345,1718134883878,-643.85187739,0.00013998,2]
[329142346,1718134883903,-202.04289428,0.00013998,2]
[329142347,1718134883928,-348.05785413,0.00013998,2]
[329142348,1718134883952,-327.23178997,0.00013998,2]
[329142349,1718134883977,-156.89655672,0.00013998,2]
[329142350,1718134884002,-372.94873447,0.00013998,2]
[329142351,1718134884028,-204.57970874,0.00013998,2]
[329142352,1718134884054,-284.76922488,0.00013998,2]
[329142353,1718134884083,-155.40225675,0.00013998,2]
[329142354,1718134884108,-239.15757143,0.00013998,2]
[329142355,1718134884153,-280.65706884,0.00013998,2]
[329142356,1718134884188,-333.06966024,0.00013998,2]
[329142357,1718134884215,-180.24039592,0.00013998,2]
[329142358,1718134884241,-561.47754647,0.00013998,2]
[329142359,1718134884267,-163.10666617,0.00013998,2]
[329142360,1718134884292,-370.26872628,0.00013998,2]
[329142361,1718134884317,-249.4215124,0.00013998,2]
[329142362,1718134884341,-256.47295399,0.00013998,2]
[329142363,1718134884365,-279.12101253,0.00013998,2]
[329142364,1718134884388,-320.74616453,0.00013998,2]
[329142365,1718134884412,-424.65789718,0.00013998,2]
[329142366,1718134884436,-1253.59956446,0.00013998,2]
[329142367,1718134884459,-155.0,0.00013998,2]
[329142368,1718134884483,-200.67332705,0.00013998,2]
[329142369,1718134884511,-3369.49144835,0.00013998,2]
[329142370,1718134884535,-187.94831516,0.00013998,2]
[329142371,1718134884560,-673.23659193,0.00013998,2]
[329142372,1718134884585,-158.15942897,0.00013998,2]
[329142373,1718134884610,-545.75067402,0.00013998,2]
[329142374,1718134884634,-953.8563239,0.00013998,2]
[329142375,1718134884658,-823.62599236,0.00013998,2]
[329142376,1718134884682,-1879.07636043,0.00013999,2]
[329142377,1718134884706,-189.42904866,0.00013999,2]
[329142378,1718134884731,-216.95866088,0.00013999,2]
[329142379,1718134884757,-296.58359376,0.00013999,2]
[329142380,1718134884782,-467.37744874,0.00013999,2]
[329142381,1718134884811,-643.27741014,0.00014,2]
[329142383,1718135254720,900.0,0.000136,4]
[329142384,1718135256828,1800.0,0.000137,5]
[329142386,1718135258994,2800.0,0.000138,5]
[329142388,1718135424338,-2000.0,0.000139,5]
[329142398,1718135434558,-219.65,0.0001389,3]
[329142399,1718135434568,-1087.76260472,0.000139,2]
[329142400,1718135434578,-1700.0,0.000139,5]
[329142401,1718135434587,-240.34870342,0.000139,2]
[329142402,1718135434597,-7999.43537516,0.000139,2]
[329142403,1718135434607,-150.0,0.00013973,2]
[329142404,1718135434617,-207.48520993,0.0001399,2]
[329142405,1718135434627,-151.98,0.0001399,2]
[329142406,1718135434637,-151.98,0.0001399,2]
[329142407,1718135434647,-151.98,0.0001399,2]
[329142408,1718135434657,-151.98,0.0001399,2]
[329142409,1718135434666,-151.98,0.0001399,2]
[329142410,1718135434677,-151.98,0.0001399,2]
[329142411,1718135434687,-151.98,0.0001399,2]
[329142412,1718135434698,-151.98,0.0001399,2]
[329142413,1718135434707,-151.98,0.0001399,2]
[329142414,1718135434718,-151.98,0.0001399,2]
[329142415,1718135434729,-1000.0,0.00013999,2]
[329142416,1718135434739,-616.28742313,0.00013999,2]
[329142417,1718135434750,-59030.23350758,0.00014,2]
[329142439,1718135440718,-198.98891716,0.000139,2]
[329142440,1718135440728,-8165.01130254,0.00014,2]
[329142441,1718135440740,-7389.5234194,0.00014,2]
[329142442,1718135441127,-2356.895,0.00014,2]
[329142443,1718135441627,-746.51726181,0.00014,2]
[329142461,1718135444068,-322.19732627,0.000139,2]
[329142462,1718135444078,-34762.3459669,0.00014,2]
[329142465,1718135444090,-5849.48315005,0.00014,2]
[329142466,1718135444102,-3106.1885353,0.00014,2]
[329142467,1718135444124,-157460.25929017,0.00014,2]
[329142468,1718135444153,-907.87201028,0.00014,2]
[329142469,1718135444279,-1026.45642444,0.00014,2]
[329142470,1718135444326,-49574.44332572,0.00014,2]
[329142471,1718135444537,-10070.38581821,0.00014,2]
[329142472,1718135444659,-34577.9163048,0.00014,2]
[329142473,1718135444701,-548.15417459,0.00014,2]
[329142474,1718135444736,-527.93381819,0.00014,2]
[329142475,1718135444876,-814.22625206,0.00014,2]
[329142476,1718135444888,-30676.60962946,0.00014,2]
[329142481,1718135444987,-392.513956,0.00014,2]
[329142668,1718135446602,-25558.86151833,0.00014,2]
[329142673,1718135446645,-824.59977352,0.00014,2]
[329142677,1718135446657,-1907.67492,0.00014,2]
[329142699,1718135446763,-1002.44274149,0.00014,2]
[329142794,1718135447622,-9039.58746593,0.00014,2]
[329142798,1718135447645,-25729.91198022,0.00014,2]
[329142801,1718135447669,-12131.27619333,0.00014,2]
[329142803,1718135447682,-990.293782,0.00014,2]
[329142806,1718135447706,-1427.36830522,0.00014,2]
[329142872,1718135448501,-97530.10576473,0.00014,2]
[329142883,1718135448607,-1542.64785416,0.00014,2]
[329142885,1718135448620,-2857.15158562,0.00014,2]
[329142888,1718135448637,-1774.86208729,0.00014,2]
[329142893,1718135448682,-2325.64980315,0.00014,2]
[329142895,1718135448695,-2138446.81455439,0.00014,2]
[329142897,1718135448705,-1092.906,0.00014,2]
[329142899,1718135448716,-165.18734497,0.00014104,2]
[329142901,1718135448726,-499.99,0.00014104,2]
[329142903,1718135448737,-219.65,0.00014904,4]
[329142905,1718135448747,-23900.0,0.00015078,2]
[329142907,1718135448757,-219.65,0.0001589,5]
[329142909,1718135448770,-165.18734495,0.00015948,2]
[329142911,1718135448780,-501.05,0.00016172,2]
[329142913,1718135448790,-229.31274097,0.000169,2]
[329142915,1718135448800,-175.32,0.00016904,6]
[329142917,1718135448810,-150.0,0.0001768,2]
[329142919,1718135448820,-200.0,0.00017692,2]
[329142921,1718135448831,-165.18734495,0.00017792,2]
[329142923,1718135448841,-250.0,0.00017821,2]
[329142925,1718135448851,-255.74,0.00017943,2]
[329142927,1718135448862,-250.0,0.00017995,2]
[329142929,1718135448872,-704.89,0.00017995,2]
[329142931,1718135448882,-200.0,0.00017998,2]
[329142933,1718135448893,-1222.28,0.00018063,2]
[329142935,1718135448903,-1000.0,0.00018073,2]
[329142937,1718135448914,-166.55,0.00018113,2]
[329142939,1718135448924,-4643.59,0.00018118,2]
[329142941,1718135448935,-155.68,0.00018189,2]
[329142943,1718135448945,-4378.58,0.00018199,2]
[329142945,1718135448956,-155.68,0.00018248,2]
[329142947,1718135448966,-404.91,0.00018256,2]
[329142949,1718135448977,-7119.3,0.00018263,2]
[329142951,1718135448987,-155.68,0.00018307,2]
[329142953,1718135448997,-155.68,0.00018367,2]
[329142955,1718135449008,-155.27,0.00018379,2]
[329142957,1718135449019,-155.27,0.00018383,2]
[329142959,1718135449030,-155.27,0.00018388,2]
[329142961,1718135449040,-155.27,0.00018393,2]
[329142963,1718135449051,-155.27,0.00018398,2]
[329142965,1718135449061,-155.27,0.00018403,2]
[329142967,1718135449073,-155.27,0.00018408,2]
[329142969,1718135449083,-155.27,0.00018412,2]
[329142971,1718135449093,-155.27,0.00018417,2]
[329142973,1718135449104,-155.27,0.00018422,2]
[329142975,1718135449115,-155.68,0.00018426,2]
[329142977,1718135449125,-155.27,0.00018427,2]
[329142979,1718135449136,-155.27,0.00018432,2]
[329142981,1718135449146,-501.05,0.00018436,2]
[329142983,1718135449157,-155.27,0.00018437,2]
[329142985,1718135449167,-155.27,0.00018442,2]
[329142987,1718135449178,-155.27,0.00018446,2]
[329142989,1718135449188,-155.27,0.00018451,2]
[329142991,1718135449199,-155.27,0.00018456,2]
[329142993,1718135449209,-155.27,0.00018461,2]
[329142995,1718135449220,-151.98,0.00018465,2]
[329142997,1718135449232,-155.27,0.00018466,2]
[329142999,1718135449242,-155.27,0.00018471,2]
[329143001,1718135449252,-240.34870341,0.00018475,2]
[329143003,1718135449266,-155.68,0.00018485,2]
[329143005,1718135449278,-7999.43537514,0.00018544,2]
[329143007,1718135449289,-198.98891716,0.00018544,2]
[329143009,1718135449302,-155.68,0.00018544,2]
[329143011,1718135449314,-155.68,0.00018604,2]
[329143013,1718135449335,-155.68,0.00018663,2]
[329143015,1718135449349,-155.68,0.00018722,2]
[329143017,1718135449360,-155.68,0.00018781,2]
[329143019,1718135449370,-155.68,0.00018841,2]
[329143021,1718135449381,-155.68,0.000189,2]
[329143023,1718135449391,-155.68,0.00018959,2]
[329143025,1718135449402,-155.68,0.00019018,2]
[329143027,1718135449412,-155.68,0.00019077,2]
[329143029,1718135449423,-155.68,0.00019137,2]
[329143031,1718135449435,-167.07,0.00019176,2]
[329143033,1718135449446,-314.98864362,0.00019178,2]
[329143035,1718135449456,-380.02010582,0.00019178,2]
[329143037,1718135449467,-1000.0,0.00019499,2]
[329143039,1718135449477,-165.18734495,0.00019636,2]
[329143041,1718135449488,-262.96555812,0.0002,2]
[329143043,1718135449498,-226.7178388,0.000201,2]
[329143045,1718135449508,-1000.0,0.00020332,2]
[329143047,1718135449519,-501.05,0.000207,2]
[329143049,1718135449530,-201.86,0.00020899,2]
[329143051,1718135449540,-1028.0,0.000209,2]
[329143053,1718135449551,-1012.0,0.000209,2]
[329143055,1718135449561,-203.23,0.00020905,2]
[329143057,1718135449572,-1000.0,0.00020979,2]
[329143059,1718135449582,-11734.0,0.00021,5]
[329143061,1718135449593,-200.13,0.00021005,2]
[329143063,1718135449603,-3648.528,0.0002101,2]
[329143065,1718135449614,-3600.311,0.0002101,2]
[329143067,1718135449624,-20106.7221,0.00021097,2]
[329143069,1718135449634,-407.98145018,0.00021173,4]
[329143071,1718135449645,-382.96459913,0.00021174,2]
[329143073,1718135449655,-407.98145018,0.0002118,4]
[329143075,1718135449666,-151.98,0.00021187,2]
[329143077,1718135449676,-151.98,0.00021187,2]
[329143079,1718135449688,-370.11444388,0.0002119,2]
[329143081,1718135449700,-1608.87568645,0.00021193,4]
[329143083,1718135449711,-1608.87568645,0.00021194,4]
[329143085,1718135449722,-156.01219047,0.00021195,2]
[329143087,1718135449732,-155.0,0.00021195,2]
[329143089,1718135449742,-1100.0,0.00021195,2]
[329143091,1718135449753,-155.18867626,0.00021195,2]
[329143092,1718135449762,-2039.90725103,0.00021195,4]
[329143094,1718135449774,-19568.93084169,0.00021197,2]
[329143099,1718135449809,-687.27552852,0.00021197,2]
[329143104,1718135449849,-322.19732625,0.00018544,2]
[329143106,1718135449860,-1140.56683377,0.00021197,2]
[329143108,1718135449872,-267.2327988,0.00021197,2]
[329144472,1718135506242,7450.18331658,0.000138,2]
[329144477,1718136289014,269.57121524,0.00021917,14]
[329144483,1718136632906,-186.11592372,0.0001316,2]
[329144484,1718136632916,-209.56877311,0.0001316,2]
[329144485,1718136632926,-225.56,0.00013161,2]
[329144486,1718136632936,-425.89,0.0001759,2]
[329144487,1718136632946,-59029.9460585,0.00018113,2]
[329144488,1718136632957,-200.0,0.00019273,2]
[329144489,1718136632966,-499.99,0.00019273,2]
[329144490,1718136632976,-250.0,0.00019298,2]
[329144491,1718136632987,-250.0,0.00019302,2]
[329144492,1718136632997,-8833.60789177,0.0001937,2]
[329144493,1718136633030,-789.65,0.0001937,2]
[329144494,1718136633178,-14276.74210823,0.0001937,2]
[329144495,1718136633188,-200.0,0.00019374,2]
[329144496,1718136633199,-734.26,0.00019452,2]
[329144497,1718136633209,-1383.0,0.00019487,2]
[329144498,1718136633219,-1000.0,0.00019599,2]
[329144499,1718136633230,-425.89,0.00019854,2]
[329144500,1718136633240,-262.96555812,0.0002,2]
[329144501,1718136633251,-1000.0,0.0002015,2]
[329144502,1718136633261,-160.57603242,0.00020848,2]
[329144503,1718136633355,-254.41749414,0.00020848,2]
[329144504,1718136633365,-45.57250586,0.00020897,2]
[329144505,1718136633385,-526.12549414,0.00020897,2]
[329144506,1718136633395,-396.40592674,0.00020897,2]
[329144507,1718136633407,-481.71810404,0.00020897,2]
[329144508,1718136633420,-499.40807414,0.00020897,2]
[329144509,1718136633798,-6609.05212819,0.00020897,2]
[329144510,1718136633835,-6566.03609594,0.00020897,2]
[329144511,1718136633850,-7289.9674728,0.00020897,2]
[329144512,1718136633864,-2632.60679815,0.00020897,2]
[329144513,1718136633875,-2500.0,0.00020897,2]
[329144514,1718136633886,-500.0,0.000209,7]
[329144515,1718136633896,-11736.0,0.000209,5]
[329144516,1718136633907,-155.0,0.00020996,2]
[329144517,1718136633918,-5191.26387965,0.00020997,2]
[329144518,1718136633930,-64185.01385494,0.00020997,2]
[329144519,1718136633942,-136265.64266541,0.00020997,2]
[329144520,1718136633952,-217.55252096,0.00020997,2]
[329144521,1718136633962,-315.37310819,0.00020997,2]
[329144522,1718136633972,-245.67646761,0.00021087,2]